fUST/lending_fUST_20250201
["ID","MTS","AMOUNT","RATE_DAILY","PERIOD"]
[351165393,1738384238665,-500.0,0.00016575,2]
[351165394,1738384238675,-500.0,0.00016575,2]
[351165395,1738384238684,-500.0,0.00016575,2]
[351165396,1738384238693,-500.0,0.00016575,2]
[351165397,1738384238702,-500.0,0.00016575,2]
[351165398,1738384238711,-500.0,0.00016575,2]
[351165399,1738384238720,-500.0,0.00016575,2]
[351165400,1738384238729,-500.0,0.00016575,2]
[351165401,1738384238861,-500.0,0.00016575,2]
[351165402,1738384238871,-500.0,0.00016575,2]
[351165403,1738384238881,-1000.0,0.00016575,7]
[351165404,1738384238891,-511.14544031,0.00016575,2]
[351165405,1738384238900,-500.0,0.00016575,2]
[351165406,1738384238910,-500.0,0.00016575,2]
[351165407,1738384238920,-500.0,0.00016575,2]
[351165408,1738384238930,-500.0,0.00016575,2]
[351165409,1738384238939,-500.0,0.00016575,2]
[351165410,1738384238949,-527.16841872,0.00016712,2]
[351165411,1738384238959,-500.0,0.00016712,2]
[351165412,1738384238969,-509.49116824,0.00016712,2]
[351165413,1738384238978,-500.0,0.00016712,2]
[351165414,1738384238988,-500.0,0.00016712,2]
[351165415,1738384238998,-500.0,0.00016712,2]
[351165416,1738384239007,-548.82,0.00016712,2]
[351165417,1738384239016,-500.0,0.00016712,2]
[351165418,1738384239026,-500.0,0.00016712,2]
[351165419,1738384239035,-500.0,0.00016712,2]
[351165420,1738384239045,-500.0,0.00016712,2]
[351165421,1738384239054,-500.0,0.00016712,2]
[351165422,1738384239064,-500.0,0.00016712,2]
[351165423,1738384239073,-500.0,0.00016712,2]
[351165424,1738384239082,-500.0,0.00016712,2]
[351165425,1738384239092,-500.0,0.00016712,2]
[351165426,1738384239103,-500.0,0.00016712,2]
[351165427,1738384239113,-500.0,0.00016712,2]
[351165428,1738384239122,-500.0,0.00016712,2]
[351165429,1738384239132,-500.0,0.00016712,2]
[351165430,1738384239141,-500.0,0.00016712,2]
[351165431,1738384239150,-500.0,0.00016712,2]
[351165432,1738384239160,-500.0,0.00016712,2]
[351165433,1738384239170,-500.0,0.00016712,2]
[351165434,1738384239179,-500.0,0.00016712,2]
[351165435,1738384239188,-500.0,0.00016712,2]
[351165436,1738384239197,-500.0,0.00016712,2]
[351165437,1738384239206,-185.78,0.00016712,2]
[351165438,1738384239216,-500.0,0.00016712,2]
[351165439,1738384239225,-500.0,0.00016712,2]
[351165440,1738384239234,-500.0,0.00016712,2]
[351165441,1738384239243,-603.1,0.00016712,2]
[351165442,1738384239253,-500.0,0.00016712,2]
[351165443,1738384239262,-220.66,0.00016712,2]
[351165444,1738384239275,-500.0,0.00016712,2]
[351165445,1738384239284,-225.62,0.00016712,2]
[351165446,1738384239293,-500.0,0.00016712,2]
[351165447,1738384239302,-500.0,0.00016712,2]
[351165448,1738384239311,-500.0,0.00016712,2]
[351165449,1738384239321,-500.0,0.00016712,2]
[351165450,1738384239330,-500.0,0.00016712,2]
[351165451,1738384239340,-500.0,0.00016712,2]
[351165452,1738384239353,-450.96576091,0.00016712,2]
[351165453,1738384239363,-500.0,0.00016712,2]
[351165454,1738384239373,-500.0,0.00016712,2]
[351165455,1738384239382,-500.0,0.00016712,2]
[351165456,1738384239391,-500.0,0.00016712,2]
[351165457,1738384239400,-500.0,0.00016712,2]
[351165458,1738384239410,-151.0,0.00016844,2]
[351165459,1738384239419,-500.0,0.00016849,2]
[351165460,1738384239429,-500.0,0.00016849,2]
[351165461,1738384239438,-500.0,0.00016849,2]
[351165462,1738384239447,-218.8,0.00016849,2]
[351165463,1738384239457,-584.57908915,0.00016849,2]
[351165464,1738384239466,-500.0,0.00016849,2]
[351165465,1738384239476,-500.0,0.00016849,2]
[351165466,1738384239486,-500.0,0.00016849,2]
[351165467,1738384239495,-500.0,0.00016849,2]
[351165468,1738384239506,-500.0,0.00016849,2]
[351165469,1738384239515,-500.0,0.00016849,2]
[351165470,1738384239525,-398.67,0.00016849,2]
[351165471,1738384239534,-500.0,0.00016849,2]
[351165472,1738384239544,-500.0,0.00016849,2]
[351165473,1738384239554,-374.13,0.00016849,2]
[351165474,1738384239563,-500.0,0.00016849,2]
[351165475,1738384239573,-267.83085008,0.00016849,2]
[351165476,1738384239582,-500.0,0.00016849,2]
[351165477,1738384239592,-500.0,0.00016849,2]
[351165478,1738384239605,-500.0,0.00016849,2]
[351165479,1738384239615,-500.0,0.00016849,2]
[351165480,1738384239624,-500.0,0.00016849,2]
[351165481,1738384239634,-151.0,0.00016849,2]
[351165482,1738384239644,-500.0,0.00016849,2]
[351165483,1738384239653,-251.1,0.00016849,2]
[351165484,1738384239663,-320.52710644,0.00016849,2]
[351165485,1738384239672,-500.0,0.00016849,2]
[351165486,1738384239681,-151.0,0.00016849,2]
[351165487,1738384239690,-151.916719,0.00016849,2]
[351165488,1738384239699,-495.22,0.00016849,2]
[351165489,1738384239708,-500.0,0.00016849,2]
[351165490,1738384239717,-500.0,0.00016849,2]
[351165491,1738384239726,-390.64,0.00016849,2]
[351165492,1738384239735,-500.0,0.00016849,2]
[351165494,1738384239745,-500.0,0.00016849,2]
[351165496,1738384239754,-151.0,0.00016849,2]
[351165497,1738384239764,-500.0,0.00016849,2]
[351165498,1738384239774,-151.0,0.00016849,2]
[351165499,1738384239782,-214.88,0.00016849,2]
[351165500,1738384239791,-500.0,0.00016849,2]
[351165501,1738384239800,-500.0,0.00016849,2]
[351165502,1738384239809,-500.0,0.00016849,2]
[351165503,1738384239819,-204.39135423,0.000169,2]
[351165504,1738384239828,-500.0,0.00016986,2]
[351165505,1738384239837,-500.0,0.00016986,2]
[351165506,1738384239846,-500.0,0.00016986,2]
[351165507,1738384239857,-500.0,0.00016986,2]
[351165508,1738384239866,-500.0,0.00016986,2]
[351165509,1738384239875,-468.04,0.00016986,2]
[351165510,1738384239884,-500.0,0.00016986,2]
[351165511,1738384239893,-500.0,0.00016986,2]
[351165512,1738384239903,-500.0,0.00016986,2]
[351165514,1738384239912,-500.0,0.00016986,2]
[351165515,1738384239922,-500.0,0.00016986,2]
[351165516,1738384239932,-500.0,0.00016986,2]
[351165517,1738384239942,-500.0,0.00016986,2]
[351165518,1738384239952,-500.0,0.00016986,2]
[351165519,1738384239962,-500.0,0.00016986,2]
[351165520,1738384239972,-500.0,0.00016986,2]
[351165521,1738384239982,-500.0,0.00016986,2]
[351165522,1738384239991,-500.0,0.00017114,2]
[351165523,1738384240000,-331.44,0.00017123,2]
[351165524,1738384240010,-347.15,0.00017123,2]
[351165525,1738384240019,-500.0,0.00017123,2]
[351165526,1738384240029,-530.57,0.00017123,2]
[351165527,1738384240038,-500.0,0.00017123,2]
[351165528,1738384240048,-500.0,0.00017123,2]
[351165529,1738384240056,-500.0,0.00017123,2]
[351165530,1738384240066,-500.0,0.00017123,2]
[351165531,1738384240075,-500.0,0.00017123,2]
[351165532,1738384240085,-500.0,0.00017123,2]
[351165533,1738384240094,-500.0,0.00017123,2]
[351165534,1738384240105,-500.0,0.00017123,2]
[351165535,1738384240115,-500.0,0.00017123,2]
[351165537,1738384240125,-500.0,0.00017123,2]
[351165539,1738384240135,-500.0,0.00017123,2]
[351165541,1738384240144,-500.0,0.00017123,2]
[351165543,1738384240153,-204.39135423,0.00017253,2]
[351165545,1738384240162,-500.0,0.0001726,2]
[351165547,1738384240171,-500.0,0.0001726,2]
[351165549,1738384240180,-500.0,0.0001726,2]
[351165551,1738384240189,-500.0,0.0001726,2]
[351165553,1738384240199,-209.4,0.0001726,2]
[351165555,1738384240209,-500.0,0.0001726,2]
[351165557,1738384240218,-500.0,0.0001726,2]
[351165559,1738384240228,-500.0,0.0001726,2]
[351165561,1738384240238,-500.0,0.0001726,2]
[351165563,1738384240247,-500.0,0.0001726,2]
[351165565,1738384240256,-500.0,0.0001726,2]
[351165567,1738384240266,-500.0,0.0001726,2]
[351165569,1738384240278,-500.0,0.0001726,2]
[351165571,1738384240287,-470.72,0.00017397,2]
[351165573,1738384240296,-500.0,0.00017397,2]
[351165575,1738384240306,-500.0,0.00017397,2]
[351165577,1738384240315,-500.0,0.00017397,2]
[351165578,1738384240326,-456.06,0.00017397,2]
[351165580,1738384240335,-500.0,0.00017397,2]
[351165582,1738384240345,-500.0,0.00017397,2]
[351165585,1738384240358,-500.0,0.00017397,2]
[351165586,1738384240366,-500.0,0.00017397,2]
[351165588,1738384240375,-500.0,0.00017397,2]
[351165590,1738384240385,-500.0,0.00017397,2]
[351165593,1738384240394,-500.0,0.00017397,2]
[351165595,1738384240404,-396.0,0.000174,2]
[351165597,1738384240414,-151.519,0.000174,2]
[351165598,1738384240422,-500.0,0.00017534,2]
[351165601,1738384240432,-500.0,0.00017534,2]
[351165602,1738384240442,-500.0,0.00017534,2]
[351165604,1738384240451,-500.0,0.00017534,2]
[351165607,1738384240460,-500.0,0.00017534,2]
[351165609,1738384240470,-500.0,0.00017534,2]
[351165611,1738384240479,-338.64,0.00017534,2]
[351165613,1738384240488,-500.0,0.00017534,2]
[351165614,1738384240498,-374.38,0.00017534,2]
[351165617,1738384240507,-290.24,0.00017534,2]
[351165619,1738384240516,-204.39135423,0.00017606,2]
[351165621,1738384240526,-233.13,0.00017671,2]
[351165622,1738384240535,-500.0,0.00017671,2]
[351165624,1738384240544,-500.0,0.00017671,2]
[351165626,1738384240554,-500.0,0.00017671,2]
[351165628,1738384240563,-500.0,0.00017671,2]
[351165630,1738384240572,-500.0,0.00017671,2]
[351165632,1738384240582,-500.0,0.00017671,2]
[351165633,1738384240591,-261.42,0.00017808,2]
[351165634,1738384240600,-500.0,0.00017808,2]
[351165635,1738384240610,-500.0,0.00017808,2]
[351165636,1738384240619,-500.0,0.00017808,2]
[351165637,1738384240628,-500.0,0.00017808,2]
[351165638,1738384240637,-117.44369247,0.00017808,2]
[351165639,1738384240651,-382.55630753,0.00017808,2]
[351165640,1738384240660,-2303.0,0.00017837,2]
[351165641,1738384240669,-151.0,0.00017837,2]
[351165642,1738384240678,-151.0,0.00017837,2]
[351165643,1738384240687,-151.0,0.00017837,2]
[351165644,1738384240696,-151.0,0.00017837,2]
[351165645,1738384240705,-151.0,0.00017837,2]
[351165646,1738384240714,-151.0,0.00017837,2]
[351165647,1738384240723,-151.0,0.00017837,2]
[351165648,1738384240732,-151.0,0.00017837,2]
[351165649,1738384240741,-151.0,0.00017837,2]
[351165650,1738384240750,-151.0,0.00017837,2]
[351165651,1738384240759,-151.0,0.00017837,2]
[351165652,1738384240769,-151.0,0.00017837,2]
[351165653,1738384240777,-153.004803,0.00017837,2]
[351165654,1738384240786,-151.0,0.00017837,2]
[351165655,1738384240795,-151.0,0.00017837,2]
[351165656,1738384240804,-151.0,0.00017837,2]
[351165657,1738384240813,-151.0,0.00017837,2]
[351165658,1738384240823,-151.0,0.00017837,2]
[351165659,1738384240832,-151.0,0.00017837,2]
[351165660,1738384240842,-151.0,0.00017837,2]
[351165661,1738384240853,-151.0,0.00017837,2]
[351165662,1738384240862,-151.0,0.00017837,2]
[351165663,1738384240871,-151.0,0.00017837,2]
[351165664,1738384240880,-292.172199,0.00017837,2]
[351165665,1738384240889,-151.0,0.00017837,2]
[351165666,1738384240899,-151.0,0.00017837,2]
[351165667,1738384240908,-151.0,0.00017945,2]
[351165668,1738384240917,-500.0,0.00017945,2]
[351165669,1738384240926,-500.0,0.00017945,2]
[351165670,1738384240935,-500.0,0.00017945,2]
[351165671,1738384240944,-448.7,0.00017945,2]
[351165672,1738384240954,-500.0,0.00017945,2]
[351165673,1738384240963,-204.39135423,0.00017959,2]
[351165674,1738384240972,-500.0,0.00018082,2]
[351165675,1738384240982,-500.0,0.00018082,2]
[351165676,1738384240991,-188.5,0.00018082,2]
[351165677,1738384241000,-500.0,0.00018082,2]
[351165678,1738384241009,-514.91355141,0.00018093,2]
[351165679,1738384241018,-161.96169493,0.00018118,2]
[351165680,1738384241028,-500.0,0.00018119,2]
[351165681,1738384241037,-402.3773098,0.00018119,2]
[351165682,1738384241046,-500.0,0.00018119,2]
[351165683,1738384241055,-501.00275463,0.00018119,2]
[351165684,1738384241064,-494.0,0.00018119,2]
[351165685,1738384241074,-350.24755291,0.00018119,2]
[351165686,1738384241083,-503.30582109,0.00018119,2]
[351165687,1738384241092,-503.84663823,0.00018119,2]
[351165688,1738384241102,-500.0,0.00018119,2]
[351165689,1738384241112,-500.0,0.00018119,2]
[351165690,1738384241121,-516.38862553,0.00018119,2]
[351165691,1738384241130,-504.31827618,0.00018119,2]
[351165692,1738384241140,-500.0,0.00018119,2]
[351165694,1738384241149,-500.0,0.00018119,2]
[351165695,1738384241158,-500.0,0.00018119,2]
[351165696,1738384241167,-500.0,0.00018119,2]
[351165697,1738384241176,-500.0,0.00018119,2]
[351165698,1738384241186,-500.0,0.00018119,2]
[351165699,1738384241195,-500.0,0.00018119,2]
[351165700,1738384241204,-500.0,0.00018119,2]
[351165701,1738384241214,-500.0,0.00018119,2]
[351165702,1738384241225,-500.0,0.00018119,2]
[351165703,1738384241234,-151.0,0.00018119,2]
[351165704,1738384241243,-201.16020265,0.00018119,2]
[351165705,1738384241252,-504.16045772,0.00018119,2]
[351165706,1738384241262,-500.0,0.00018119,2]
[351165707,1738384241274,-500.0,0.00018119,2]
[351165708,1738384241284,-500.0,0.00018119,2]
[351165709,1738384241294,-507.74582983,0.00018119,2]
[351165710,1738384241303,-500.0,0.00018119,2]
[351165711,1738384241313,-500.0,0.00018119,2]
[351165712,1738384241322,-517.05463637,0.00018119,2]
[351165713,1738384241331,-500.0,0.00018119,2]
[351165714,1738384241340,-500.0,0.00018119,2]
[351165715,1738384241351,-500.0,0.00018119,2]
[351165716,1738384241360,-500.0,0.00018119,2]
[351165717,1738384241369,-500.0,0.00018119,2]
[351165718,1738384241379,-500.0,0.00018119,2]
[351165719,1738384241388,-500.0,0.00018119,2]
[351165720,1738384241397,-151.0,0.00018119,2]
[351165721,1738384241406,-151.0,0.00018119,2]
[351165722,1738384241417,-151.0,0.00018119,2]
[351165723,1738384241426,-500.0,0.00018119,2]
[351165724,1738384241436,-508.08749264,0.00018119,2]
[351165725,1738384241445,-500.0,0.00018119,2]
[351165726,1738384241455,-500.0,0.00018119,2]
[351165727,1738384241464,-501.23476105,0.00018119,2]
[351165728,1738384241474,-152.5985,0.00018119,2]
[351165729,1738384241483,-500.0,0.00018119,2]
[351165730,1738384241493,-500.0,0.00018119,2]
[351165731,1738384241502,-151.0,0.00018119,2]
[351165732,1738384241513,-151.0,0.00018119,2]
[351165733,1738384241523,-151.0,0.00018119,2]
[351165734,1738384241531,-151.0,0.00018119,2]
[351165735,1738384241541,-645.13,0.00018119,2]
[351165736,1738384241550,-500.0,0.00018119,2]
[351165737,1738384241560,-151.0,0.00018119,2]
[351165738,1738384241668,-518.3623816,0.00018119,2]
[351165739,1738384241679,-510.26075357,0.00018119,2]
[351165740,1738384241690,-151.0,0.00018119,2]
[351165741,1738384241700,-151.0,0.0001812,2]
[351165742,1738384241711,-151.0,0.0001812,2]
[351165743,1738384241720,-159.548626,0.0001812,2]
[351165744,1738384241729,-159.548626,0.0001812,2]
[351165745,1738384241738,-151.0,0.0001812,2]
[351165746,1738384241748,-170.405624,0.0001812,2]
[351165747,1738384241758,-151.0,0.0001812,2]
[351165748,1738384241768,-166.61429,0.0001812,2]
[351165749,1738384241778,-151.0,0.0001812,2]
[351165750,1738384241787,-151.0,0.0001812,2]
[351165751,1738384241796,-151.0,0.0001812,2]
[351165752,1738384241807,-151.0,0.0001812,2]
[351165753,1738384241816,-151.0,0.0001812,2]
[351165754,1738384241825,-151.0,0.0001812,2]
[351165755,1738384241835,-151.0,0.0001812,2]
[351165756,1738384241845,-151.0,0.0001812,2]
[351165757,1738384241856,-151.0,0.0001812,2]
[351165758,1738384241866,-151.0,0.0001812,2]
[351165759,1738384241875,-151.0,0.0001812,2]
[351165760,1738384241885,-259.274481,0.0001812,2]
[351165761,1738384241895,-155.17043,0.0001812,2]
[351165762,1738384241906,-161.732647,0.0001812,2]
[351165763,1738384241915,-151.0,0.0001812,2]
[351165764,1738384241925,-500.0,0.0001821,2]
[351165765,1738384241935,-175.252,0.00018218,2]
[351165766,1738384241946,-350.97,0.00018219,2]
[351165767,1738384241956,-500.0,0.00018219,2]
[351165768,1738384241966,-500.0,0.00018219,2]
[351165769,1738384241976,-500.0,0.00018256,2]
[351165770,1738384241986,-500.0,0.00018256,2]
[351165771,1738384241995,-547.68,0.00018256,2]
[351165772,1738384242005,-464.47370875,0.00018256,2]
[351165773,1738384242014,-500.0,0.00018256,2]
[351165774,1738384242024,-500.0,0.00018256,2]
[351165775,1738384242035,-500.0,0.00018256,2]
[351165776,1738384242044,-500.0,0.00018256,2]
[351165777,1738384242054,-500.0,0.00018256,2]
[351165778,1738384242063,-151.0,0.00018256,2]
[351165779,1738384242072,-151.0,0.00018256,2]
[351165780,1738384242081,-151.0,0.00018256,2]
[351165781,1738384242091,-645.13,0.00018256,2]
[351165782,1738384242100,-500.0,0.00018256,2]
[351165783,1738384242110,-204.39135423,0.00018312,2]
[351165784,1738384242119,-500.0,0.00018356,2]
[351165785,1738384242128,-500.0,0.00018356,2]
[351165786,1738384242137,-460.52286005,0.00018393,2]
[351165787,1738384242147,-500.0,0.00018393,2]
[351165788,1738384242156,-501.58837712,0.00018393,2]
[351165789,1738384242165,-500.0,0.00018393,2]
[351165790,1738384242174,-500.0,0.00018393,2]
[351165791,1738384242183,-500.0,0.00018393,2]
[351165792,1738384242193,-645.13,0.00018393,2]
[351165793,1738384242202,-500.0,0.00018393,2]
[351165794,1738384242211,-151.0,0.00018393,2]
[351165795,1738384242220,-500.0,0.00018493,2]
[351165796,1738384242230,-500.0,0.00018493,2]
[351165797,1738384242239,-308.7495594,0.00018521,2]
[351165798,1738384242249,-306.0,0.00018521,2]
[351165799,1738384242258,-371.67945224,0.00018529,2]
[351165800,1738384242270,-12812.47065466,0.0001853,5]
[351165801,1738384242285,-500.0,0.0001853,2]
[351165802,1738384242295,-151.0,0.0001853,2]
[351165803,1738384242304,-151.0,0.0001853,2]
[351165804,1738384242316,-500.0,0.0001853,2]
[351165805,1738384242325,-584.7,0.0001853,2]
[351165806,1738384242334,-151.0,0.0001853,2]
[351165807,1738384242343,-151.0,0.0001853,2]
[351165808,1738384242354,-151.858387,0.0001853,2]
[351165809,1738384242365,-645.13,0.0001853,2]
[351165810,1738384242375,-500.0,0.0001853,2]
[351165811,1738384242384,-500.0,0.0001863,2]
[351165812,1738384242394,-157.28,0.0001863,2]
[351165813,1738384242403,-204.39135423,0.00018665,2]
[351165814,1738384242412,-500.0,0.00018667,2]
[351165815,1738384242422,-645.13,0.00018667,2]
[351165816,1738384242431,-500.0,0.00018667,2]
[351165817,1738384242440,-500.0,0.00018767,2]
[351165818,1738384242449,-151.0,0.00018804,2]
[351165819,1738384242459,-151.0,0.00018804,2]
[351165820,1738384242468,-500.0,0.00018804,2]
[351165821,1738384242477,-645.13,0.00018804,2]
[351165822,1738384242486,-248.88,0.00018804,2]
[351165823,1738384242495,-500.0,0.00018904,2]
[351165824,1738384242504,-236.88,0.00018941,2]
[351165825,1738384242514,-645.13,0.00018941,2]
[351165826,1738384242523,-150.126268,0.00019,2]
[351165827,1738384242533,-204.39135423,0.00019018,2]
[351165828,1738384242542,-500.0,0.00019041,2]
[351165829,1738384242551,-151.0,0.00019078,2]
[351165830,1738384242561,-151.0,0.00019078,2]
[351165831,1738384242570,-645.13,0.00019078,2]
[351165832,1738384242581,-6405.24791066,0.0001916,2]
[351165833,1738384242590,-151.0,0.0001916,2]
[351165834,1738384242600,-151.0,0.0001916,2]
[351165835,1738384242608,-151.0,0.0001916,2]
[351165836,1738384242618,-151.0,0.0001916,2]
[351165837,1738384242627,-151.0,0.0001916,2]
[351165838,1738384242636,-151.0,0.0001916,2]
[351165839,1738384242645,-151.0,0.00019177,2]
[351165840,1738384242654,-500.0,0.00019178,7]
[351165841,1738384242664,-166.26,0.00019178,2]
[351165842,1738384242673,-274.01677,0.00019178,2]
[351165843,1738384242682,-505.26109813,0.00019178,2]
[351165844,1738384242691,-162.518657,0.00019178,2]
[351165845,1738384242701,-151.0,0.0001919,2]
[351165847,1738384242710,-151.0,0.0001919,2]
[351165848,1738384242719,-151.0,0.0001919,2]
[351165849,1738384242728,-151.0,0.0001919,2]
[351165850,1738384242738,-151.0,0.0001919,2]
[351165851,1738384242747,-645.13,0.00019215,2]
[351165852,1738384242756,-160.0,0.0001923,5]
[351165854,1738384242766,-500.0,0.00019306,2]
[351165856,1738384242775,-645.13,0.00019352,2]
[351165857,1738384242785,-204.39135423,0.00019371,2]
[351165858,1738384242794,-151.0,0.0001947,2]
[351165859,1738384242804,-151.0,0.0001947,2]
[351165860,1738384242813,-151.0,0.0001947,2]
[351165861,1738384242823,-151.0,0.0001947,2]
[351165862,1738384242832,-151.0,0.0001947,2]
[351165864,1738384242842,-151.0,0.0001947,2]
[351165865,1738384242852,-166.20206986,0.0001947,2]
[351165866,1738384242863,-3000.0,0.0001947,2]
[351165867,1738384242874,-645.13,0.00019489,2]
[351165868,1738384242884,-378.0,0.000195,8]
[351165869,1738384242893,-151.0,0.000195,2]
[351165870,1738384242903,-153.46621101,0.00019534,2]
[351165871,1738384242912,-57751.44705716,0.0001957,7]
[351165872,1738384243033,-1191.90761232,0.0001957,7]
[351165874,1738384243044,-205571.05307396,0.0001957,7]
[351165876,1738384243055,-306.84895474,0.0001957,7]
[351165899,1738384243258,-500.0,0.00016711,2]
[351165906,1738384243315,-86.33077268,0.00016711,2]
[351165907,1738384243324,-388.90569726,0.00016711,2]
[351165910,1738384243333,-572.48314507,0.0001957,7]
[351167458,1738385013715,206.725397,0.00013699,2]
[351167460,1738385074265,204.340148,0.00013973,2]
[351167461,1738385134138,-300.0,0.00016437,2]
[351167462,1738385134160,-35.96127098,0.00016438,2]
[351167463,1738385242620,-243.50316411,0.00016438,2]
[351167464,1738385247245,-238.227795,0.00015924,2]
[351167465,1738385247266,-126.64430567,0.00016438,2]
[351167564,1738385435864,-69.92623612,0.00016438,2]
[351167565,1738385435874,-500.0,0.00016438,2]
[351167566,1738385435884,-506.09264111,0.00016438,2]
[351167567,1738385435894,-337.76,0.00016438,2]
[351167568,1738385435903,-500.0,0.00016438,2]
[351167569,1738385435913,-500.0,0.00016438,2]
[351167570,1738385435923,-500.0,0.00016438,2]
[351167571,1738385435933,-500.0,0.00016438,2]
[351167572,1738385435942,-500.0,0.00016438,2]
[351167573,1738385435952,-500.0,0.00016438,2]
[351167574,1738385435962,-500.0,0.00016438,2]
[351167575,1738385435973,-500.0,0.00016438,2]
[351167576,1738385435982,-500.0,0.00016438,2]
[351167577,1738385435991,-315.48,0.00016438,2]
[351167578,1738385436001,-500.0,0.00016438,2]
[351167579,1738385436010,-500.0,0.00016438,2]
[351167580,1738385436019,-500.0,0.00016438,2]
[351167581,1738385436029,-500.0,0.00016574,2]
[351167582,1738385436039,-500.0,0.00016574,2]
[351167583,1738385436048,-500.0,0.00016574,2]
[351167584,1738385436057,-500.0,0.00016574,2]
[351167585,1738385436066,-500.0,0.00016574,2]
[351167586,1738385436075,-500.0,0.00016574,2]
[351167587,1738385436085,-500.0,0.00016574,2]
[351167588,1738385436096,-500.0,0.00016574,2]
[351167589,1738385436106,-500.0,0.00016574,2]
[351167590,1738385436115,-500.0,0.00016574,2]
[351167591,1738385436125,-193.76780706,0.00016574,2]
[351167592,1738385436137,-306.23219294,0.00016574,2]
[351167593,1738385436146,-500.0,0.00016574,2]
[351167594,1738385436155,-249.13780706,0.00016574,2]
[351167595,1738385436177,-250.86219294,0.00016574,2]
[351167596,1738385436188,-63.68473389,0.00016574,2]
[351167628,1738385438547,-500.0,0.00016438,2]
[351167629,1738385438557,-32385.60168465,0.00016574,2]
[351167649,1738385440773,-27.05590712,0.00016574,2]
[351167667,1738385443598,-37.32903011,0.00016574,2]
[351167683,1738385952210,210.174113,0.00013973,2]
[351167684,1738386009768,208.015251,0.00013699,2]
[351167685,1738386134133,3004.9188683,0.00015056,2]
[351167695,1738386551102,-4560.79885582,0.00015269,2]
[351167696,1738386564209,-300.57005372,0.00015269,2]
[351167697,1738386568113,-21.74338864,0.00015269,2]
[351167698,1738386568133,-238.2277955,0.00015424,2]
[351167699,1738386568154,-188.0,0.00015448,2]
[351167700,1738386568175,-5003.25966964,0.00015449,2]
[351167736,1738386632804,-111.48755956,0.00015449,2]
[351167737,1738386632813,-230.93910861,0.00016338,2]
[351167750,1738386632969,-428.68186743,0.00016338,2]
[351167752,1738386632979,-200.03606034,0.00016338,2]
[351167817,1738386638618,-2931.58536743,0.00016338,2]
[351167818,1738386638628,-3000.0,0.000164,2]
[351167819,1738386638638,-3000.0,0.0001641,2]
[351167820,1738386638648,-3000.0,0.0001642,2]
[351167821,1738386638657,-902.61921681,0.0001643,2]
[351167822,1738386638780,-882.65184205,0.00016285,2]
[351167823,1738386638789,-2097.38078319,0.0001643,2]
[351167824,1738386638799,-500.0,0.00016438,2]
[351167825,1738386638809,-500.0,0.00016438,2]
[351167826,1738386638818,-500.0,0.00016438,2]
[351167827,1738386638827,-500.0,0.00016438,2]
[351167828,1738386638836,-500.0,0.00016438,2]
[351167829,1738386638845,-500.0,0.00016438,2]